bitfinex/quotes_SOLUSD_20240930
["timestamp","ask_amount","ask_price","bid_price","bid_amount"]
[1727691665601,6.4847,154.21,154.16,12.6468]
[1727691665797,1.62140761,154.25,154.15,15.828]
[1727691665798,8.10650642,154.2,154.15,22.3151]
[1727691665985,1.62156097,154.19,154.15,22.3151]
[1727691666481,8.10706097,154.19,154.15,15.828]
[1727691666679,1.62164803,154.18,154.15,15.828]
[1727691667285,1.62164803,154.18,154.14,6.4875]
[1727691667986,1.62164803,154.18,154.13,6.488]
[1727691667987,8.10764803,154.18,154.13,6.488]
[1727691668178,1.62178541,154.17,154.13,6.488]
[1727691668375,1.62178541,154.17,154.12,6.1602]
[1727691668578,32.876,154.23,154.13,6.4879]
[1727691668579,6.4857,154.19,154.13,6.4879]
[1727691668880,8.10762135,154.18,154.13,6.4879]
[1727691669187,1.62184403,154.17,154.11,15.3173]
[1727691669384,8.1082467,154.17,154.12,6.4884]
[1727691669586,6.4867,154.16,154.11,21.806]
[1727691669791,1.62199365,154.15,154.11,21.806]
[1727691670478,6.4863,154.18,154.12,6.488]
[1727691671105,8.10814498,154.17,154.12,6.488]
[1727691671310,6.4867,154.16,154.12,0.12549]
[1727691671497,1.62201102,154.15,154.12,0.12549]
[1727691671877,6.4867,154.16,154.12,0.12549]
[1727691672085,6.4863,154.17,154.12,6.61389]
[1727691672308,6.4863,154.17,154.13,6.488]
[1727691672506,16.6665,154.23,154.17,6.4863]
[1727691672811,64.2443,154.27,154.17,6.4863]
[1727691672980,6.4852,154.2,154.16,0.12549]
[1727691673182,1.62159345,154.19,154.16,0.12549]
[1727691673900,6.4852,154.2,154.16,0.12549]
[1727691674799,48.038,154.27,154.11,15.3173]
[1727691674800,8.10738739,154.19,154.14,6.4875]
[1727691674998,6.486,154.18,154.12,0.25098]
[1727691675308,1.62181566,154.17,154.13,6.488]
[1727691675693,6.486,154.18,154.13,6.488]
[1727691675898,6.486,154.18,154.14,6.4876]
[1727691676392,36.2102,154.23,154.14,6.4876]
[1727691676590,6.4858,154.19,154.15,6.61249]
[1727691676791,23.776884,154.22,154.15,6.61249]
[1727691676792,6.4851,154.2,154.15,6.61249]
[1727691676992,6.4851,154.2,154.16,6.4867]
[1727691677495,31.8327,154.27,154.15,0.12549]
[1727691677703,6.4837,154.24,154.19,6.4853]
[1727691678003,31.8327,154.27,154.19,6.4853]
[1727691678183,31.8327,154.27,154.11,15.3173]
[1727691678184,16.2079,154.25,154.13,6.6193]
[1727691678390,6.4847,154.21,154.17,6.61159]
[1727691678785,1.62151383,154.24,154.17,6.61159]
[1727691678988,20.0,154.26,154.19,6.4853]
[1727691679194,6.4839,154.23,154.19,6.4853]
[1727691679726,1.62121753,154.22,154.19,6.4853]
[1727691680012,6.4839,154.23,154.19,6.4853]
[1727691680307,6.4833,154.25,154.21,6.4845]
[1727691680609,6.4833,154.25,154.17,0.12549]
[1727691680610,6.4817,154.29,154.23,6.4834]
[1727691680996,6.4817,154.29,154.22,1.29696165]
[1727691680997,6.4817,154.29,154.24,6.4833]
[1727691681610,1.62056748,154.28,154.25,0.12549]
[1727691681810,8.10266748,154.28,154.23,0.12549]
[1727691681984,1.62074785,154.27,154.23,0.25098]
[1727691682187,6.4821,154.28,154.23,0.25098]
[1727691682414,6.4813,154.3,154.24,6.4833]
[1727691682907,1.62071088,154.29,154.23,0.12549]
[1727691683092,6.4822,154.27,154.23,0.12549]
[1727691683293,8.10344756,154.26,154.23,0.12549]
[1727691683592,6.4826,154.26,154.22,0.25098]
[1727691684201,8.10379722,154.25,154.22,0.12549]
[1727691684407,6.4829,154.25,154.22,0.12549]
[1727691684920,1.62096849,154.24,154.22,0.12549]
[1727691685091,1.62096849,154.24,154.2,13.1043]
[1727691685295,1.62101753,154.24,154.21,0.12549]
[1727691686294,6.4829,154.25,154.21,0.12549]
[1727691686604,39.979984,154.3,154.21,1.42230168]
[1727691686798,39.979984,154.3,154.22,0.12549]
[1727691686995,23.776884,154.28,154.22,0.12549]
[1727691687195,1.62090068,154.27,154.22,0.12549]
[1727691687394,6.1146,154.32,154.23,0.12549]
[1727691687609,6.482,154.28,154.23,0.12549]
[1727691687915,6.482,154.28,154.24,6.4833]
[1727691688092,6.482,154.28,154.23,0.12549]
[1727691688412,6.1146,154.32,154.24,6.60879]
[1727691688603,6.4813,154.29,154.24,6.60879]
[1727691688797,6.4813,154.29,154.25,0.12549]
[1727691689305,1.62059761,154.28,154.25,0.12549]
[1727691689508,8.10259761,154.28,154.2,6.6193]
[1727691689708,6.483,154.25,154.21,6.4846]
[1727691689915,6.4822,154.27,154.22,7.7808407]
[1727691690211,6.4822,154.27,154.2,6.6193]
[1727691690212,6.483,154.25,154.21,6.4845]
[1727691690608,8.10336345,154.26,154.22,6.4841]
[1727691690808,6.4825,154.26,154.22,6.4841]
[1727691691308,6.4822,154.27,154.22,6.4841]
[1727691691514,6.4822,154.27,154.23,6.60919]
[1727691691808,32.5584,154.35,154.25,0.12549]
[1727691692005,6.4812,154.3,154.26,0.12549]
[1727691692211,1.62050203,154.29,154.26,0.12549]
[1727691692418,8.10180203,154.29,154.25,6.60809]
[1727691692618,6.4813,154.29,154.25,6.60809]
[1727691696641,6.4809,154.3,154.25,6.60809]
[1727691696943,1.62055215,154.29,154.25,6.60809]
[1727691697308,6.4809,154.3,154.25,6.60809]
[1727691697808,1.62054931,154.29,154.25,6.60809]
[1727691698009,6.4813,154.29,154.25,6.60809]
[1727691698506,6.4809,154.3,154.26,6.60799]
[1727691700914,23.776884,154.34,154.27,0.12549]
[1727691701307,6.4803,154.32,154.29,0.12549]
[1727691701511,16.1974,154.35,154.29,0.12549]
[1727691701715,6.4797,154.33,154.29,0.12549]
[1727691701921,6.4797,154.33,154.29,6.60669]
[1727691702415,8.10050759,154.32,154.28,6.60699]
[1727691702649,1.62025343,154.31,154.28,6.60699]
[1727691703020,6.4809,154.3,154.25,15.7985]
[1727691703219,1.62049138,154.29,154.25,22.2813]
[1727691703533,1.62049138,154.29,154.25,15.7985]
[1727691703838,6.482,154.28,154.24,6.4833]
[1727691704039,6.4809,154.3,154.26,6.4825]
[1727691705915,16.1977,154.35,154.27,1.54736503]
[1727691705916,43.776884,154.34,154.27,1.54736503]
[1727691706245,6.4808,154.31,154.27,0.12549]
[1727691706431,1.62035616,154.3,154.27,0.12549]
[1727691706618,8.10125616,154.3,154.27,0.12549]
[1727691706964,8.10170658,154.29,154.21,23.84901454]
[1727691707125,8.102438,154.28,154.25,0.12549]
[1727691707325,23.776884,154.31,154.21,15.7985]
[1727691707632,6.4822,154.27,154.23,6.4837]
[1727691708239,6.4818,154.28,154.24,6.4833]
[1727691708443,23.776884,154.31,154.21,15.7985]
[1727691708763,6.4817,154.28,154.25,0.25098]
[1727691709341,6.4817,154.28,154.25,0.12549]
[1727691709542,6.4817,154.28,154.25,0.25098]
[1727691709761,6.4817,154.28,154.25,0.12549]
[1727691709958,1.62069951,154.3,154.24,0.25098]
[1727691710369,6.4818,154.28,154.24,0.25098]
[1727691710665,6.4818,154.28,154.24,0.12549]
[1727691710869,1.62061709,154.27,154.24,0.12549]
[1727691711037,6.4818,154.28,154.24,6.60879]
[1727691711465,16.1824,154.32,154.25,0.12549]
[1727691711649,6.481,154.3,154.26,0.12549]
[1727691711984,6.481,154.3,154.26,6.60789]
[1727691712473,6.4815,154.29,154.26,0.12549]
[1727691713472,1.62059256,154.28,154.21,15.7985]
[1727691713647,6.4821,154.27,154.22,0.25098]
[1727691713975,6.4821,154.27,154.22,6.60959]
[1727691714470,6.4821,154.27,154.23,6.4837]
[1727691714644,6.4821,154.27,154.22,6.60959]
[1727691714844,8.10334751,154.26,154.22,6.4841]
[1727691715040,6.4826,154.26,154.22,6.4841]
[1727691716070,6.4826,154.26,154.23,0.25098]
[1727691716258,6.4817,154.28,154.25,0.12549]
[1727691716951,6.4817,154.28,154.24,0.12549]
[1727691717252,8.10312344,154.27,154.23,0.12549]
[1727691717572,6.4825,154.27,154.23,6.60919]
[1727691718469,6.4825,154.27,154.24,0.12549]
[1727691719157,1.62072476,154.26,154.22,0.25098]
[1727691719350,6.4837,154.24,154.21,15.7985]
[1727691720377,1.62103029,154.23,154.18,8.05835296]
[1727691720566,23.776884,154.28,154.17,22.09]
[1727691720567,6.4849,154.21,154.17,22.09]
[1727691720749,6.4855,154.19,154.16,8.05835296]
[1727691721075,6.4847,154.21,154.17,6.4863]
[1727691721483,6.4847,154.21,154.13,15.6447]
[1727691721484,6.4847,154.21,154.18,1.29711762]
[1727691721652,6.4847,154.21,154.15,8.05835296]
[1727691722174,6.4847,154.21,154.15,8.07576684]
[1727691722480,6.4847,154.21,154.17,0.25098]
[1727691722848,1.62127503,154.2,154.15,8.07960943]
[1727691723067,23.776884,154.24,154.15,14.56670943]
[1727691723068,6.4855,154.19,154.15,14.56670943]
[1727691723659,20.0,154.23,154.14,9.37683589]
[1727691723864,6.4851,154.2,154.16,6.4864]
[1727691724873,6.4851,154.2,154.17,0.25098]
[1727691725072,6.4851,154.2,154.17,1.54805714]
[1727691725274,6.4851,154.2,154.17,0.25098]
[1727691725565,23.776884,154.24,154.17,0.25098]
[1727691725776,6.4847,154.21,154.17,1.54805686]
[1727691726470,6.4847,154.21,154.17,0.25098]
[1727691726785,6.4847,154.21,154.17,1.54805686]
[1727691727383,6.4847,154.21,154.17,0.25098]
[1727691727765,6.485,154.2,154.17,0.25098]
[1727691728084,6.4852,154.2,154.16,0.25098]
[1727691728281,6.4852,154.2,154.16,1.5481433]
[1727691728464,6.4852,154.2,154.16,6.73748]
[1727691728660,22.0314,154.3,154.19,0.12549]
[1727691728862,16.205,154.28,154.2,0.12549]
[1727691729061,6.4826,154.26,154.22,6.60959]
[1727691729272,22.0314,154.3,154.23,1.29666729]
[1727691729471,6.4821,154.27,154.23,1.29666729]
[1727691729679,22.0314,154.3,154.22,0.12549]
[1727691729867,1.62080115,154.29,154.21,0.12549]
[1727691730063,6.4835,154.24,154.21,0.12549]
[1727691730690,6.4831,154.25,154.22,0.12549]
[1727691730985,16.2038,154.29,154.23,0.12549]
[1727691731184,6.4822,154.27,154.23,1.42211409]
[1727691731370,16.2006,154.32,154.24,0.12549]
[1727691731575,6.4808,154.31,154.25,7.77902291]
[1727691731785,6.3399,154.34,154.25,7.77902291]
[1727691731998,6.3399,154.34,154.24,6.60879]
[1727691732198,6.4821,154.27,154.24,0.12549]
[1727691732683,6.4818,154.28,154.24,0.12549]
[1727691732887,20.0,154.32,154.25,0.12549]
[1727691733187,6.4813,154.29,154.25,6.60839]
[1727691733388,6.4813,154.29,154.26,0.12549]
[1727691733569,6.3399,154.34,154.27,0.12549]
[1727691733759,16.3932,154.35,154.28,0.12549]
[1727691733962,6.3004,154.38,154.29,0.12549]
[1727691733963,6.4792,154.34,154.29,0.12549]
[1727691734183,1.62000304,154.33,154.29,0.12549]
[1727691734389,1.62017291,154.37,154.27,16.1299]
[1727691734670,6.4809,154.3,154.26,0.25098]
[1727691734883,1.62038112,154.34,154.26,0.25098]
[1727691735188,1.62038112,154.34,154.23,15.6116]
[1727691735189,6.4818,154.28,154.24,0.12549]
[1727691735481,6.4821,154.27,154.23,22.095]
[1727691735685,6.4821,154.27,154.23,15.6116]
[1727691735989,6.4818,154.28,154.23,22.0953]
[1727691736165,6.4818,154.28,154.23,15.6116]
[1727691736581,6.4814,154.29,154.25,0.25098]
[1727691736777,6.4822,154.27,154.24,0.25098]
[1727691737785,8.10326043,154.26,154.23,15.6116]
[1727691737989,6.4826,154.26,154.23,15.6116]
[1727691738404,23.776884,154.3,154.23,22.0953]
[1727691738595,6.4818,154.28,154.24,6.4834]
[1727691738892,6.4818,154.28,154.23,22.0953]
[1727691739092,6.4828,154.26,154.21,6.4845]
[1727691739303,6.4828,154.26,154.22,0.12549]
[1727691739805,6.4828,154.26,154.22,8.03171233]
[1727691739994,6.4828,154.26,154.22,6.73508]
[1727691740293,6.4828,154.26,154.22,0.25098]
[1727691741302,6.4829,154.25,154.22,0.25098]
[1727691741883,8.10438036,154.24,154.19,21.9092]
[1727691742202,6.4835,154.24,154.19,21.9092]
[1727691743193,6.4835,154.24,154.2,0.25098]
[1727691743696,1.62100901,154.28,154.2,0.25098]
[1727691743907,6.4841,154.23,154.2,0.25098]
[1727691744272,6.4834,154.24,154.2,0.25098]
[1727691744478,6.483,154.25,154.2,8.03248103]
[1727691745094,6.483,154.25,154.2,6.73568]
[1727691745295,1.62093636,154.27,154.2,6.73568]
[1727691745500,6.4834,154.24,154.2,0.25098]
[1727691745703,6.4834,154.24,154.2,6.73588]
[1727691746197,43.776884,154.28,154.2,0.25098]
[1727691746393,6.4834,154.24,154.2,6.73598]
[1727691746594,6.483,154.25,154.22,0.25098]
[1727691747301,6.483,154.25,154.21,0.25098]
[1727691748307,6.4838,154.23,154.2,0.25098]
[1727691748607,6.4846,154.22,154.17,6.4859]
[1727691748907,6.4846,154.22,154.18,0.12549]
[1727691749085,6.4839,154.23,154.18,6.4856]
[1727691749287,6.4839,154.23,154.19,0.12549]
[1727691749905,6.4843,154.22,154.19,0.25098]
[1727691750897,6.4847,154.21,154.19,0.25098]
[1727691751104,6.4847,154.21,154.18,0.25098]
[1727691751608,43.776884,154.26,154.18,6.73678]
[1727691751987,43.776884,154.26,154.19,1.29694602]
[1727691752508,6.4834,154.24,154.2,6.61049]
[1727691752713,6.4834,154.24,154.21,1.29679557]
[1727691753083,20.0,154.26,154.21,1.29679557]
[1727691753291,6.4838,154.23,154.21,0.12549]
[1727691753494,1.62099539,154.25,154.19,0.12549]
[1727691753706,6.4831,154.25,154.21,6.4846]
[1727691753914,6.4831,154.25,154.22,0.25098]
[1727691754619,6.4826,154.26,154.22,8.03175904]
[1727691754785,6.483,154.25,154.22,1.54765904]
[1727691754990,6.483,154.25,154.22,0.25098]
[1727691755485,1.62084114,154.28,154.17,0.25098]
[1727691755689,6.4836,154.24,154.2,0.25098]
[1727691756115,6.4843,154.22,154.16,16.4063]
[1727691756298,6.4843,154.22,154.17,6.4862]
[1727691756901,8.10594317,154.21,154.17,6.4862]
[1727691757105,8.10594317,154.21,154.16,22.893]
[1727691757106,6.4847,154.21,154.16,22.893]
[1727691757625,6.4847,154.21,154.16,6.4864]
[1727691757796,6.4847,154.21,154.14,6.432]
[1727691757797,6.4855,154.19,154.14,12.9195]
[1727691759020,6.4851,154.2,154.16,0.12549]
[1727691759318,16.1904,154.28,154.17,0.12549]
[1727691759494,16.1904,154.28,154.18,1.29682315]
[1727691759691,16.1904,154.28,154.2,6.61019]
[1727691759692,6.4829,154.26,154.2,6.61019]
[1727691759890,6.5771,154.3,154.21,0.12549]
[1727691760117,1.62064706,154.29,154.21,0.12549]
[1727691760315,6.4821,154.27,154.24,0.25098]
[1727691760527,16.5985,154.32,154.24,0.25098]
[1727691760695,6.4817,154.28,154.24,0.25098]
[1727691761011,6.4821,154.27,154.24,0.25098]
[1727691761523,6.4821,154.27,154.23,0.25098]
[1727691762723,1.62066379,154.31,154.25,0.12549]
[1727691763015,6.4813,154.29,154.25,0.25098]
[1727691765328,6.4817,154.28,154.25,0.25098]
[1727691766715,6.4812,154.3,154.25,6.73378]
[1727691767012,6.4796,154.33,154.28,6.73258]
[1727691767398,6.4805,154.31,154.28,0.25098]
[1727691768013,16.4553,154.36,154.3,0.12549]
[1727691768315,6.4796,154.33,154.3,0.12549]
[1727691768517,6.48,154.32,154.3,0.12549]
[1727691768716,16.4553,154.36,154.29,0.12549]
[1727691768894,1.62005309,154.35,154.29,0.12549]
[1727691770206,6.48,154.32,154.29,0.12549]
[1727691773724,6.4807,154.31,154.28,0.12549]
[1727691773926,16.1974,154.35,154.27,0.25098]
[1727691774218,6.4796,154.33,154.28,6.4813]
[1727691774425,6.48,154.32,154.29,0.25098]
[1727691775931,6.48,154.32,154.28,0.25098]
[1727691776801,1.62015848,154.34,154.3,0.25098]
[1727691776802,6.4792,154.34,154.3,0.25098]
[1727691777008,6.4791,154.35,154.3,6.73178]
[1727691777210,6.4791,154.35,154.32,0.25098]
[1727691777410,16.1944,154.38,154.32,0.25098]
[1727691777617,16.1944,154.38,154.32,16.9153478]
[1727691777618,6.4777,154.38,154.32,16.9153478]
[1727691778028,6.4779,154.37,154.32,16.9153478]
[1727691778202,6.4779,154.37,154.32,23.3952478]
[1727691778401,6.4779,154.37,154.32,15.61958]
[1727691778630,6.4779,154.37,154.34,0.25098]
[1727691779227,15.4091,154.44,154.33,0.25098]
[1727691779430,6.4771,154.39,154.36,0.25098]
[1727691780814,6.4771,154.39,154.35,0.25098]
[1727691781814,6.4767,154.4,154.37,0.25098]
[1727691782041,6.4771,154.39,154.35,6.72968]
[1727691782215,6.4775,154.38,154.35,0.25098]
[1727691782408,20.0,154.41,154.35,0.25098]
[1727691782605,6.4776,154.38,154.35,0.25098]
[1727691782830,6.4776,154.38,154.33,6.4795]
[1727691782831,6.4776,154.38,154.34,0.12549]
[1727691783237,6.4779,154.37,154.34,0.12549]
[1727691783437,1.61950204,154.4,154.33,0.12549]
[1727691783626,6.4772,154.39,154.35,6.60409]
[1727691784140,20.0,154.41,154.36,0.12549]
[1727691784321,6.4769,154.4,154.37,0.12549]
[1727691784531,38.7962,154.46,154.38,0.12549]
[1727691784532,6.4765,154.41,154.38,0.12549]
[1727691784911,6.477,154.4,154.38,0.12549]
[1727691786241,6.4761,154.42,154.38,1.42088216]
[1727691786436,32.2402,154.48,154.39,16.29879]
[1727691786615,6.4753,154.44,154.4,0.12549]
[1727691787133,6.4755,154.43,154.4,0.12549]
[1727691788533,32.2402,154.48,154.41,0.12549]
[1727691788534,6.4751,154.44,154.41,0.12549]
[1727691789121,15.1136,154.51,154.41,0.12549]
[1727691789434,15.1136,154.51,154.39,16.1733]
[1727691789435,6.4742,154.46,154.43,0.12549]
[1727691789848,6.4747,154.45,154.43,0.12549]
[1727691790216,6.4747,154.45,154.42,0.12549]
[1727691790413,25.39561374,154.5,154.42,0.12549]
[1727691790617,6.4763,154.41,154.39,16.1733]
[1727691791416,23.776884,154.45,154.39,16.1733]
[1727691791650,6.4759,154.42,154.39,16.1733]
[1727691792018,6.477,154.4,154.38,0.12549]
[1727691792227,6.477,154.4,154.35,22.5195]
[1727691792452,6.477,154.4,154.36,6.4783]
[1727691793419,1.61923439,154.42,154.36,0.25098]
[1727691793617,6.4763,154.41,154.37,6.4776]
[1727691793822,20.0,154.44,154.38,0.25098]
[1727691793823,6.4759,154.42,154.38,0.25098]
[1727691794219,6.4754,154.43,154.39,6.477]
[1727691794425,20.0,154.47,154.41,0.12549]
[1727691794645,6.4753,154.44,154.41,0.12549]
[1727691796228,31.2944,154.51,154.42,0.12549]
[1727691796424,6.474,154.47,154.42,6.60119]
[1727691796740,6.4742,154.46,154.44,0.25098]
[1727691796944,6.475,154.44,154.42,0.12549]
[1727691797441,6.4754,154.43,154.41,15.96299]
[1727691797740,6.4758,154.42,154.39,0.25098]
[1727691799022,6.4774,154.39,154.37,16.3202]
[1727691800048,6.4775,154.38,154.33,22.297]
[1727691800428,6.4775,154.38,154.33,15.8177]
[1727691800643,6.4775,154.38,154.34,6.479]
[1727691801241,6.4775,154.38,154.35,0.12549]
[1727691801541,6.4775,154.38,154.35,0.25098]
[1727691802444,6.4775,154.38,154.33,22.2972]
[1727691802445,6.4783,154.36,154.33,15.8177]
[1727691803451,1.61956008,154.39,154.33,15.8177]
[1727691803856,1.61956008,154.39,154.29,15.9948]
[1727691804150,6.4793,154.34,154.3,6.4807]
[1727691804740,6.4793,154.34,154.29,22.4757]
[1727691804942,21.61979742,154.37,154.29,15.9948]
[1727691805144,6.4797,154.33,154.29,22.476]
[1727691805629,6.4793,154.34,154.29,22.476]
[1727691806336,6.4793,154.34,154.3,0.25098]
[1727691807249,37.81529742,154.37,154.3,0.25098]
[1727691807550,6.4797,154.33,154.3,0.25098]
[1727691808749,36.1955,154.37,154.29,15.9948]
[1727691808750,6.4784,154.36,154.32,0.25098]
[1727691809445,16.4096,154.39,154.32,0.25098]
[1727691809627,6.4782,154.37,154.32,6.73068]
[1727691809832,6.4786,154.36,154.32,0.25098]
[1727691810038,6.4786,154.36,154.32,6.73088]
[1727691811454,20.0,154.39,154.34,0.12549]
[1727691811753,6.4775,154.38,154.32,0.25098]
[1727691812262,6.4781,154.37,154.32,0.25098]
[1727691812438,6.4781,154.37,154.32,6.73058]
[1727691812841,6.4781,154.37,154.34,0.25098]
[1727691813253,6.4786,154.36,154.32,0.25098]
[1727691814446,6.4787,154.36,154.31,6.4803]
[1727691815749,6.4787,154.36,154.32,0.25098]
[1727691816147,6.4787,154.35,154.32,0.25098]
[1727691816563,23.776884,154.41,154.29,24.05303067]
[1727691816764,20.0,154.36,154.29,15.9948]
[1727691816940,1.6200737,154.35,154.29,15.9948]
[1727691817256,17.8176737,154.35,154.27,8.05823067]
[1727691817438,6.4805,154.31,154.28,1.29618581]
[1727691818842,6.4805,154.31,154.29,0.25098]
[1727691819362,16.1976,154.35,154.29,0.25098]
[1727691819570,6.4808,154.3,154.29,0.25098]
[1727691819860,6.4805,154.31,154.29,0.25098]
[1727691820965,6.4805,154.31,154.28,0.25098]
[1727691821473,6.4805,154.31,154.28,1.54710109]
[1727691821845,20.0,154.34,154.28,1.42161109]
[1727691822047,6.4807,154.31,154.29,0.12549]
[1727691823751,6.4807,154.31,154.29,0.25098]
[1727691824062,6.4807,154.31,154.29,0.12549]
[1727691824259,6.4808,154.3,154.27,0.25098]
[1727691824457,6.4806,154.31,154.27,6.73288]
[1727691824659,6.4806,154.31,154.27,8.02905312]
[1727691824960,6.4801,154.32,154.29,0.12549]
[1727691825264,6.4796,154.33,154.29,8.0282356]
[1727691826467,6.4776,154.38,154.33,6.4792]
[1727691826665,6.4776,154.38,154.34,1.42123206]
[1727691826666,6.4778,154.38,154.34,1.42123206]
[1727691827453,6.4778,154.38,154.35,0.12549]
[1727691828064,6.478,154.37,154.34,0.25098]
[1727691828367,6.4785,154.36,154.34,0.25098]
[1727691829651,32.1902,154.41,154.33,0.25098]
[1727691829652,6.4779,154.37,154.33,0.25098]
[1727691829851,6.4779,154.37,154.32,0.25098]
[1727691830054,20.0,154.39,154.34,0.25098]
[1727691830270,26.4771,154.39,154.35,1.29566696]
[1727691830476,26.4771,154.39,154.34,1.5465198]
[1727691830769,26.4771,154.39,154.35,1.29553166]
[1727691830950,26.4771,154.39,154.36,0.25098]
[1727691831869,6.4771,154.39,154.36,0.25098]
[1727691832648,6.4766,154.4,154.36,0.25098]
[1727691833773,6.4771,154.39,154.36,0.25098]
[1727691834766,6.4759,154.42,154.36,0.25098]
[1727691835177,6.4759,154.42,154.38,0.25098]
[1727691835874,15.4726,154.45,154.38,0.25098]
[1727691836062,6.4762,154.41,154.38,0.25098]
[1727691836574,6.4758,154.42,154.38,0.25098]
[1727691836875,6.4763,154.41,154.38,0.25098]
[1727691837253,6.4759,154.42,154.38,0.25098]
[1727691837476,6.4754,154.43,154.38,0.25098]
[1727691838552,6.4753,154.44,154.4,0.25098]
[1727691838867,20.0,154.46,154.4,0.25098]
[1727691839074,6.4759,154.42,154.4,0.25098]
[1727691839582,6.4755,154.43,154.39,0.25098]
[1727691839883,6.4755,154.43,154.38,0.25098]
[1727691840169,6.4759,154.42,154.38,0.25098]
[1727691840572,6.4763,154.41,154.38,0.25098]
[1727691840776,6.4767,154.4,154.38,0.25098]
[1727691841153,6.4763,154.41,154.38,0.12549]
[1727691841563,6.4745,154.45,154.38,1.42079041]
[1727691841770,20.0,154.47,154.38,1.42079041]
[1727691842056,6.4748,154.45,154.38,7.46649041]
[1727691842477,20.0,154.47,154.38,7.46649041]
[1727691842669,1.61865366,154.47,154.39,0.12549]
[1727691843582,15.2,154.52,154.41,0.25098]
[1727691843769,6.4729,154.49,154.43,16.16308]
[1727691843952,6.4729,154.49,154.45,0.25098]
[1727691844754,6.4733,154.48,154.44,0.25098]
[1727691845383,6.4737,154.47,154.44,0.25098]
[1727691845768,6.4737,154.47,154.44,1.54579694]
[1727691846479,6.4733,154.48,154.44,1.54579694]
[1727691846988,31.3796,154.52,154.44,1.54579694]
[1727691847482,6.4716,154.53,154.46,0.25098]
[1727691847663,6.4721,154.51,154.46,0.25098]
[1727691848286,6.4716,154.53,154.46,0.25098]
[1727691848487,17.0056212,154.56,154.48,0.25098]
[1727691848488,0.8300212,154.56,154.48,0.25098]
[1727691848685,6.4708,154.54,154.46,0.25098]
[1727691849173,0.8300212,154.56,154.46,0.25098]
[1727691849174,0.8300212,154.56,154.47,15.3189]
[1727691849381,6.4704,154.55,154.48,0.25098]
[1727691849563,6.4708,154.54,154.48,0.25098]
[1727691850264,6.4705,154.55,154.48,0.25098]
[1727691850459,0.8300212,154.56,154.5,38.67897762]
[1727691850664,0.8300212,154.56,154.53,0.25098]
[1727691850862,0.8300212,154.56,154.55,0.25098]
[1727691851067,0.8300212,154.56,154.55,16.20668]
[1727691851265,16.3230764,154.65,154.57,15.9557]
[1727691851266,0.1572764,154.65,154.57,15.9557]
[1727691851492,0.8300212,154.71,154.65,6.4106]
[1727691851697,0.8300212,154.71,154.66,30.43309362]
[1727691853191,0.8300212,154.71,154.67,25.06939718]
[1727691853668,0.8300212,154.71,154.68,0.25098]
[1727691853869,0.8300212,154.71,154.7,0.25098]
[1727691856893,0.3300212,154.71,154.7,0.25098]
[1727691860519,0.3300212,154.71,154.67,0.12549]
[1727691860811,0.3300212,154.71,154.67,1.41825974]
[1727691861105,0.3300212,154.71,154.67,0.12549]
[1727691861887,0.3300212,154.71,154.67,0.25098]
[1727691863281,0.3300212,154.71,154.69,0.25098]
[1727691863482,0.3300212,154.71,154.7,0.25098]
[1727691871399,0.3300212,154.71,154.69,24.027864]
[1727691871602,0.3300212,154.71,154.7,31.26666796]
[1727691872084,0.3300212,154.71,154.7,0.25098]
[1727691872706,0.3300212,154.71,154.7,1.54333388]
[1727691873416,0.3300212,154.71,154.7,0.25098]
[1727691873990,0.3300212,154.71,154.7,0.12549]
[1727691874189,0.3300212,154.71,154.67,1.29247707]
[1727691874409,0.3300212,154.71,154.65,6.4106]